[Event "Israeli Championship 2022"]
[Site "Yosiah Arad"]
[Date "2022.12.06"]
[Round "2.8"]
[White "Iliaguev, Nisim"]
[Black "Mikhalevski, Victor"]
[Result "1/2-1/2"]
[ECO "A05"]
[WhiteElo "2364"]
[BlackElo "2517"]
[Annotator "TA"]
[PlyCount "85"]
[EventDate "2022.12.05"]
[EventType "swiss"]
[EventCountry "ISR"]
[SourceTitle "playchess.com"]
[Source "ChessBase"]
[SourceQuality "1"]
[TimeControl "40/5400+30:1800+30"]

{[%evp 15,85,-19,21,-26,-14,-10,0,-70,11,-50,-41,-48,-47,-61,-54,-168,-156,-178,-162,-153,-145,-162,-163,-201,-209,-271,-253,-262,-251,-256,-239,-232,-241,-220,-230,-196,-147,-156,-139,-150,-167,-150,-135,-246,-187,-230,-208,-371,-95,-100,0,0,0,0,0,0,602,608,586,590,560,534,633,617,601,0,0,0,0,0,0,0]} 1. Nf3 {[%emt 0:00:30]} Nf6 {[%emt 0:00:40]} 2. b3 {[%emt 0:01:03]} g6 {[%emt 0:06:56]} 3. Bb2 {[%emt 0:00:18]} Bg7 {[%emt 0:00:04]} 4. g3 {[%emt 0:04:50]} d5 {[%emt 0:09:55]} 5. Bg2 {[%emt 0:00:23]} c5 {[%emt 0:00:12]} 6. O-O {[%emt 0:00:12]} O-O {[%emt 0:00:11]} 7. c4 {[%emt 0:03:56]} d4 {[%emt 0:00:52]} 8. b4 {[%emt 0:01:43]} Nfd7 {[%emt 0:06:31][%cal Bf6d7,Bd7c5,Bc5a4][%mdl 32]} 9. a3 {[%emt 0:09:05] A05: Réti Opening: 1 Nf3 Nf6.} (9. b5 $142) 9... e5 {[%emt 0:01:04][%cal Be7e5,Be5e4][%mdl 32]} 10. d3 {[%emt 0:00:14]} a5 {[%emt 0:07:50]} 11. Nbd2 {[%emt 0:09:33]} (11. b5 $11) 11... Nc6 {[%emt 0:00:59]} (11... axb4 $15 12. Qc2 Nc6) 12. bxc5 {[%emt 0:18:15]} (12. b5 $11 Ne7 13. Re1) 12... Nxc5 {[%emt 0:00:25] [#]} 13. Nb3 $146 {[%emt 0:00:04]} ({Predecessor:} 13. Rb1 Bd7 14. Ba1 Qe7 15. Qc2 a4 16. Ne1 Na5 17. Qd1 Nab3 18. Nc2 Bc6 19. Nb4 Bxg2 20. Kxg2 {½-½ (58) Mons,L (2339)-Anton Guijarro,D (2550) Maribor 2012}) 13... Na4 {[%emt 0:12:20]} 14. Qc2 {[%emt 0:12:01]} e4 {[%emt 0:03:23]} 15. Nfd2 {[%emt 0:02:07]} (15. dxe4 $2 {loses.} d3 16. exd3 Nxb2 $19) ({Better is} 15. Ne1 $1 $15) 15... e3 $19 {[%emt 0:01:50]} 16. Nf3 {[%emt 0:04:46]} Nxb2 {[%emt 0:15:10]} 17. Qxb2 {[%emt 0:00:03]} a4 $1 $36 {[%emt 0:07:16][%mdl 2048] Black is on the roll.} 18. Nc1 {[%emt 0:02:34]} exf2+ {[%emt 0:00:34]} 19. Rxf2 {[%emt 0:00:09]} Bh6 $1 {[%emt 0:00:04]} 20. Rf1 {[%emt 0:00:09]} Be3+ {[%emt 0:00:29]} 21. Kh1 {[%emt 0:00:05]} Ra5 $1 {[%emt 0:00:06]} 22. Na2 {[%emt 0:02:35]} Rh5 $1 {[%emt 0:00:23] White must now prevent ...Qc7.} 23. Nb4 {[%emt 0:01:54]} Nxb4 {[%emt 0:01:36]} 24. Qxb4 {[%emt 0:01:26]} Qc7 $1 {[%emt 0:00:07]} 25. Qe1 {[%emt 0:01:22]} ({But not} 25. Nh4 g5 26. Rf5 Rxh4 27. gxh4 Bxf5 $19) 25... f5 {[%emt 0:00:41]} (25... g5 $19 26. Rb1 Bd7) 26. Rb1 $17 {[%emt 0:03:55]} f4 {[%emt 0:01:28]} 27. Rb5 {[%emt 0:02:23]} Rxb5 {[%emt 0:15:46]} ({Much weaker is} 27... fxg3 28. Rxh5 gxh5 29. Qxg3+ Qxg3 30. hxg3 $11) 28. cxb5 {[%emt 0:01:48]} fxg3 {[%emt 0:01:05]} 29. Qb4 {[%emt 0:05:23]} (29. Nd2 $17 {was worth a try.}) 29... Be6 $19 {[%emt 0:04:33]} 30. b6 {[%emt 0:01:49] [#]} Qf4 {[%emt 0:00:49] ...Qh6 is the strong threat.} 31. Qb5 $2 {[%emt 0:09:45]} (31. Qe1 {was called for.}) 31... Kg7 $2 {[%emt 0:01:59]} (31... Qh6 $19 32. Qe5 g5 33. Qxg3 Bf4) 32. Qc5 $17 {[%emt 0:00:19][%cal Of3d2]} Rf7 {[%emt 0:00:28]} ({Black should try} 32... Re8 $17 {Threatens to win with ...Bd7.} 33. Ne1 Qg4 34. Qc7+ Kh8) 33. Ne5 $11 {[%emt 0:01:34] Inhibits Bd7.} Qxf1+ {[%emt 0:00:41]} 34. Bxf1 {[%emt 0:00:01]} Rxf1+ {[%emt 0:00:09]} 35. Kg2 {[%emt 0:00:00] The board is on fire.} gxh2 $2 {[%emt 0:00:47][%mdl 8192]} 36. Qe7+ $18 {[%emt 0:01:16]} Bf7 {[%emt 0:00:26]} 37. Kxh2 {[%emt 0:00:31][%mdl 64]} Rf5 {[%emt 0:00:02] [#] Hoping for ...Bf4+.} 38. Nf3 $1 {[%emt 0:00:56]} Kh6 {[%emt 0:00:24]} 39. Qxb7 {[%emt 0:00:22]} Bd5 {[%emt 0:00:01]} 40. Qc8 {[%emt 0:00:38]} ({White must play} 40. Qe7 $18) 40... Bxf3 $11 {[%emt 0:01:17] The position is equal.} (40... Bf4+ $2 41. Kg2 $18) 41. exf3 {[%emt 0:30:24]} Rh5+ $1 {[%emt 0:30:05]} 42. Kg2 {[%emt 0:00:00]} (42. Kg3 $5 Rg5+ $8 43. Kh4 Rh5+ 44. Kg4 Rg5+ 45. Kh4 Rh5+ 46. Kg4 Rg5+ 47. Kh4 $11) 42... Rg5+ {[%emt 0:00:00]} 43. Kh3 {[%emt 0:00:00] Weighted Error Value: White=0.53/Black=0.32} (43. Kf1 $5 Rg1+ $8 44. Ke2 Rg2+ 45. Kf1 Rg1+ 46. Ke2 Rg2+ 47. Kf1 Rg1+ $11) 1/2-1/2

[Event "Israeli Championship 2022"]
[Site "Yosiah Arad"]
[Date "2022.12.06"]
[Round "2.9"]
[White "Erenberg, Ariel"]
[Black "Yaniv, Yuval"]
[Result "0-1"]
[ECO "E73"]
[WhiteElo "2514"]
[BlackElo "2343"]
[Annotator "TA"]
[PlyCount "52"]
[EventDate "2022.12.05"]
[EventType "swiss"]
[EventCountry "ISR"]
[SourceTitle "playchess.com"]
[Source "ChessBase"]
[SourceQuality "1"]
[TimeControl "40/5400+30:1800+30"]

{[%evp 12,52,55,17,26,29,35,28,27,25,33,12,25,12,25,-14,-8,-20,-11,-69,-19,-77,-81,-177,-168,-242,-242,-229,-232,-227,-241,-487,-493,-566,-542,-1510,-750,-1456,-572,-1085,-1062,-1823,-1707]} 1. d4 {[%emt 0:02:20]} Nf6 {[%emt 0:00:18]} 2. c4 {[%emt 0:00:05]} g6 {[%emt 0:00:25]} 3. Nc3 {[%emt 0:00:07]} Bg7 {[%emt 0:00:20]} 4. e4 {[%emt 0:00:05]} d6 {[%emt 0:00:16]} 5. Be2 {[%emt 0:00:06]} O-O {[%emt 0:00:15]} 6. Be3 {[%emt 0:00:07]} Nc6 {[%emt 0:00:43][%cal Bb8c6,Bc6e5,Be5g4][%mdl 32]} 7. d5 {[%emt 0:00:57]} Ne5 {[%emt 0:00:12] E73: King's Indian: Averbakh Variation without 6...c5.} 8. f4 {[%emt 0:00:08]} Neg4 {[%emt 0:00:10]} 9. Bd2 {[%emt 0:00:19]} (9. Bc1 $5 {[%cal Rh2h3]}) 9... Nh6 $1 {[%emt 0:00:44] White has an edge.} 10. Nf3 {[%emt 0:01:30] 10.h3 gains popularity.} c6 {[%emt 0:02:28]} 11. a4 {[%emt 0:01:02]} e6 {[%emt 0:00:13]} 12. dxe6 {[%emt 0:01:09]} Bxe6 {[%emt 0:00:12] [#]} 13. h3 $146 {[%emt 0:10:09]} ({Predecessor:} 13. Ng5 Re8 14. O-O Bg4 15. Bxg4 Qb6+ 16. Kh1 Nhxg4 17. Qe2 h6 18. Nxf7 Kxf7 19. h3 {½-½ (49) Riazantsev,A (2638)-Makarian,R (2441) Sochi 2020}) 13... d5 {[%emt 0:04:31]} 14. cxd5 {[%emt 0:05:56]} (14. e5 {simplifies} d4 15. exf6 dxc3 16. Bxc3 Bxf6 17. Qxd8 Bxc3+ 18. bxc3 Raxd8 19. Kf2) 14... cxd5 {[%emt 0:00:10]} 15. e5 {[%emt 0:00:02]} ({Of course not} 15. f5 dxe4 16. Bxh6 (16. fxe6 exf3 17. Bxf3 Qb6 $17) 16... Bxh6 17. Qxd8 Raxd8 18. fxe6 fxe6 $17) 15... d4 {[%emt 0:04:59]} (15... Ne4 $15 16. Bd3 Nf5) 16. Nb5 {[%emt 0:14:42]} (16. exf6 $11 {remains equal.} dxc3 17. Bxc3 Bxf6 18. Qxd8 Bxc3+ 19. bxc3 Raxd8 20. Kf2) 16... d3 $1 $17 {[%emt 0:00:57] ...Ne4 is the strong threat.} 17. Bf1 {[%emt 0:02:04]} (17. Bc3 $17 Nh5 18. Qxd3) 17... Ne4 $19 {[%emt 0:04:28] White must now prevent ...Nf5.} 18. Bb4 {[%emt 0:02:03] [#]} (18. Bc3 {might work better.}) 18... Qb6 $1 {[%emt 0:10:09][%csl Ge4][%cal Rb6f2]} 19. Nfd4 {[%emt 0:07:34][%cal Of1d3] [#]} d2+ {[%emt 0:00:36]} 20. Bxd2 {[%emt 0:02:46]} a6 $40 {[%emt 0:00:15][%mdl 128] Black is out for blood.} 21. a5 $2 {[%emt 0:18:39]} (21. Qc2 Nxd2 22. Qc7 Qxc7 23. Nxc7 Nxf1 24. Rxf1) 21... Qd8 {[%emt 0:00:53] ( -> ...Qh4+). Black is clearly winning.} 22. Nd6 {[%emt 0:05:42]} Qh4+ {[%emt 0:09:34]} (22... Nxd6 $2 {perishes.} 23. Nxe6 fxe6 24. exd6 $19) 23. g3 {[%emt 0:00:08]} Qxg3+ {[%emt 0:00:33]} (23... Nxg3 $2 {is the wrong capture.} 24. Nf3 Qe7 25. Rg1 Nxf1 26. Rxf1 $19) 24. Ke2 {[%emt 0:00:02]} Bd5 {[%emt 0:01:03]} (24... Nf5 $142 {[%cal Rf5d4]} 25. Nxe6 fxe6) 25. Be1 {[%emt 0:13:21]} Qxf4 {[%emt 0:00:44]} 26. Nf3 {[%emt 0:02:33] [#]} Nc3+ $1 {[%emt 0:00:34][%mdl 512] Weighted Error Value: White=1.29/Black=0.30} 0-1

[Event "Israeli Championship 2022"]
[Site "Yosiah Arad"]
[Date "2022.12.06"]
[Round "2.10"]
[White "Bronstein, Or"]
[Black "Kupervaser, Erez"]
[Result "1-0"]
[ECO "D30"]
[WhiteElo "2442"]
[BlackElo "2331"]
[Annotator "TA"]
[PlyCount "65"]
[EventDate "2022.12.05"]
[EventType "swiss"]
[EventCountry "ISR"]
[SourceTitle "playchess.com"]
[Source "ChessBase"]
[SourceQuality "1"]
[TimeControl "40/5400+30:1800+30"]

{[%evp 17,65,20,20,0,0,0,0,0,17,22,29,23,39,11,16,8,4,-33,-8,-9,23,21,34,0,0,0,0,0,19,0,61,68,64,85,154,154,261,260,261,240,285,300,336,314,310,314,461,456,510,324]} 1. d4 {[%emt 0:00:10]} d5 {[%emt 0:00:13]} 2. c4 {[%emt 0:00:37]} c6 {[%emt 0:00:15]} 3. Nf3 {[%emt 0:00:13]} Nf6 {[%emt 0:00:14]} 4. e3 {[%emt 0:00:13]} e6 {[%emt 0:01:42]} 5. b3 {[%emt 0:00:24]} Be7 {[%emt 0:01:23]} 6. Bb2 {[%emt 0:01:10]} O-O {[%emt 0:01:51]} 7. Bd3 {[%emt 0:00:04]} b6 {[%emt 0:00:25]} 8. O-O {[%emt 0:02:15]} Bb7 {[%emt 0:01:23]} 9. Nbd2 {[%emt 0:01:18]} Nbd7 {[%emt 0:02:33]} 10. Ne5 {[%emt 0:18:56] D30: Queen's Gambit Declined: Systems without Nc3.} dxc4 {[%emt 0:10:15]} 11. Ndxc4 {[%emt 0:06:28]} c5 $1 {[%emt 0:03:41]} 12. Qe2 {[%emt 0:01:12] The position is equal.} Qc7 {[%emt 0:12:59]} 13. Rac1 {[%emt 0:01:27]} Rad8 {[%emt 0:03:45] [#]} 14. Rfd1 $146 {[%emt 0:05:00]} (14. Nxd7 {simplifies} Nxd7 15. f4 g6 16. dxc5 Nxc5 17. Ne5) ({Predecessor:} 14. f4 Qb8 15. Bb1 Ba8 16. Nxd7 Rxd7 17. dxc5 Bxc5 18. Bxf6 gxf6 19. Qh5 f5 20. Qg5+ {½-½ (20) Priehoda,V (2365)-Skomorokhin,R (2460) Wattens 1995}) 14... Qb8 {[%emt 0:12:02]} 15. Nxd7 {[%emt 0:10:51]} Nxd7 {[%emt 0:01:19]} 16. Qh5 {[%emt 0:08:40][%csl Gd3][%cal Rh5h7] [#]} g6 {[%emt 0:04:47]} 17. Qh3 {[%emt 0:04:19]} Bf6 {[%emt 0:01:21]} (17... b5 $5 {[%cal Rb5c4]} 18. Nd2 cxd4 $11) 18. Ba3 {[%emt 0:02:04]} (18. Qg3 {simplifies} Qxg3 19. hxg3 cxd4 20. exd4 Bg5 21. Ne3) 18... Bd5 {[%emt 0:07:14]} 19. Nd2 {[%emt 0:06:02]} Rfe8 {[%emt 0:01:44]} (19... Be7 {is interesting.} 20. Qh6 Rfe8 21. Bb5 Bf8) 20. Ne4 {[%emt 0:02:51]} Be7 {[%emt 0:06:39]} 21. Bb2 {[%emt 0:02:41]} cxd4 {[%emt 0:04:28]} 22. Bxd4 {[%emt 0:00:23]} e5 {[%emt 0:01:51]} 23. Bb2 {[%emt 0:00:59]} Nc5 {[%emt 0:02:19]} ({Better is} 23... Qb7 $11) 24. Nxc5 $14 {[%emt 0:02:13]} Bxc5 {[%emt 0:00:05]} 25. Bb5 {[%emt 0:01:25] Inhibits f6.} Be6 {[%emt 0:01:38]} ({Black should play} 25... Re6) 26. Qg3 $16 {[%emt 0:07:40] White is more active.} f6 {[%emt 0:05:56]} (26... Rxd1+ $16 27. Rxd1 Rc8) 27. Bxe8 $18 {[%emt 0:00:07]} Rxe8 {[%emt 0:00:01]} 28. Qh4 {[%emt 0:00:39]} Kg7 {[%emt 0:02:30]} 29. Qa4 {[%emt 0:01:02]} Kf7 {[%emt 0:03:32]} 30. Ba3 {[%emt 0:01:23]} Bxa3 {[%emt 0:01:55]} 31. Qxa3 {[%emt 0:00:21]} Qb7 {[%emt 0:00:04]} (31... Re7 $142 32. Rc6 Rd7) 32. Qd6 {[%emt 0:01:07] [#] Strongly threatening Rc7+.} Re7 {[%emt 0:00:05] Inhibits Rc7.} 33. Rc6 {[%emt 0:00:48] Weighted Error Value: White=0.09 (flawless) /Black=0.29 (precise)} 1-0

[Event "Israeli Championship 2022"]
[Site "Yosiah Arad"]
[Date "2022.12.06"]
[Round "2.11"]
[White "Rozen, Eytan"]
[Black "Sitbon, Itay"]
[Result "1-0"]
[ECO "A20"]
[WhiteElo "2459"]
[BlackElo "2092"]
[Annotator "TA"]
[PlyCount "77"]
[EventDate "2022.12.05"]
[EventType "swiss"]
[EventCountry "ISR"]
[SourceTitle "playchess.com"]
[Source "ChessBase"]
[SourceQuality "1"]
[TimeControl "40/5400+30:1800+30"]

{[%evp 9,77,-2,-2,3,-6,0,9,5,23,1,10,0,17,14,18,9,17,14,6,9,26,0,0,0,9,-1,32,8,60,74,91,88,104,93,144,139,125,123,162,144,147,147,223,204,261,261,335,258,307,316,300,312,266,141,142,119,122,110,179,212,292,303,300,275,29993,29994,29994,29995,29995,29996]} 1. c4 {[%emt 0:00:25]} e5 {[%emt 0:00:06][%cal Be7e5,Be5e4][%mdl 32]} 2. e3 {[%emt 0:00:29]} Nf6 {[%emt 0:05:41]} 3. a3 {[%emt 0:00:31]} c6 {[%emt 0:07:17]} 4. Nf3 {[%emt 0:00:35]} e4 {[%emt 0:03:15]} 5. Nd4 {[%emt 0:00:02]} d5 {[%emt 0:00:18]} 6. cxd5 {[%emt 0:01:39] A20: English Opening: 1...e5.} cxd5 {[%emt 0:00:01]} 7. d3 {[%emt 0:00:41]} exd3 {[%emt 0:08:58]} 8. Bxd3 {[%emt 0:00:10] The position is equal.} Nc6 {[%emt 0:00:06]} 9. Nxc6 {[%emt 0:02:18]} bxc6 {[%emt 0:00:05]} 10. Qc2 {[%emt 0:00:08]} Bd7 {[%emt 0:03:34]} 11. b3 {[%emt 0:01:41]} Bd6 {[%emt 0:00:40]} 12. Bb2 {[%emt 0:00:07]} O-O {[%emt 0:01:09]} 13. Nd2 {[%emt 0:00:12]} Re8 {[%emt 0:02:11] [#]} 14. O-O $146 {[%emt 0:00:35]} ({Predecessor:} 14. Bf5 Rc8 15. O-O Bxf5 16. Qxf5 Re6 17. g3 Nd7 18. e4 g6 19. Qh3 dxe4 20. Rad1 {0-1 (65) Bayram,Y (2268)-Citak,S (2340) Kocaeli 2014}) 14... Rb8 {[%emt 0:17:04]} 15. h3 {[%emt 0:03:36]} Qc8 {[%emt 0:01:17][%cal Od7h3]} 16. Bxf6 {[%emt 0:06:52]} gxf6 {[%emt 0:00:03]} 17. Qd1 {[%emt 1:18:59]} (17. Bxh7+ Kg7 18. Bd3 Bxh3 $1 $17) 17... Re5 {[%emt 0:04:07][%cal Od7h3] Against Qh5} (17... Bxh3 {is more complex.} 18. Qf3 Bg4 19. Qxf6 Qe6) 18. Qf3 {[%emt 0:00:00] Threatening Qg3+.} Be7 {[%emt 0:20:45]} ({Better is} 18... Qf8 $11) 19. Qf4 $14 {[%emt 0:00:00]} Rg5 {[%emt 0:00:49]} 20. Nf3 {[%emt 0:00:00]} Rg7 {[%emt 0:00:58]} 21. Nd4 $1 {[%emt 0:00:00]} c5 {[%emt 0:08:09] Inhibits b4.} (21... Bxh3 $2 22. Bf5 Rxg2+ 23. Kh1 $18) (21... Bf8 $142) 22. Nf5 $16 {[%emt 0:00:00] White is more active.} Bxf5 {[%emt 0:00:01]} 23. Bxf5 {[%emt 0:00:00]} Qd8 {[%emt 0:00:17]} 24. Rab1 {[%emt 0:00:00]} Bd6 {[%emt 0:00:21] [#]} 25. Qf3 {[%emt 0:00:00]} Bc7 {[%emt 0:01:43]} (25... d4 $16 {was worth a try.} 26. exd4 cxd4) 26. Rfd1 $18 {[%emt 0:00:00]} d4 {[%emt 0:00:02]} 27. b4 {[%emt 0:00:00]} Qd6 {[%emt 0:04:28]} 28. g3 {[%emt 0:00:00] Threatens to win with bxc5.} Qe5 {[%emt 0:01:04]} 29. bxc5 {[%emt 0:00:00]} Rg5 {[%emt 0:01:24]} 30. Rxb8+ {[%emt 0:00:00]} (30. exd4 Qxf5 31. Rxb8+ Bxb8 $18) 30... Bxb8 {[%emt 0:00:01]} 31. e4 {[%emt 0:00:00]} (31. exd4 Qxf5 32. Qa8 Kg7 33. Qxb8 Qd7 $18) (31. g4 $18 dxe3 32. Kf1 (32. fxe3 Kh8 $16) 32... exf2 33. h4 (33. Qxf2 Kh8 $16) (33. Rd8+ Kg7 $11)) 31... Qxc5 $16 {[%emt 0:00:50]} 32. h4 {[%emt 0:00:00]} Rg7 {[%emt 0:00:49]} 33. Qd3 {[%emt 0:00:00]} Be5 {[%emt 0:01:10] [#]} (33... Bc7 $16 34. Kg2 (34. Qxd4 Qxd4 35. Rxd4 Rxg3+ 36. fxg3 Bb6 $14) 34... Qc3 35. Qxc3 (35. Qxd4 Rxg3+ 36. fxg3 Qxg3+ 37. Kf1 Qf3+ 38. Ke1 Bb6 $11) 35... dxc3) 34. Rd2 $1 $18 {[%emt 0:00:00][%cal Bd1d2,Bd2c2,Bc2c8][%mdl 32] Hoping for Rc2.} Kh8 {[%emt 0:01:31]} 35. Rc2 {[%emt 0:00:00] Inhibits Qc3.} Qa5 {[%emt 0:00:53]} 36. Qd1 {[%emt 0:00:00] White threatens Rc8+ and mate.} Qb6 $2 {[%emt 0:02:30]} (36... Bc7 $18 37. Kg2 (37. Qxd4 Rxg3+ 38. Kf1 Be5 $16) 37... Qe5) 37. Rc8+ {[%emt 0:00:00] White mates.} Rg8 {[%emt 0:00:01]} 38. Qh5 {[%emt 0:00:00][%csl Gf5,LRf7,LRh7][%cal Rh5h7]} Qb1+ {[%emt 0:00:32]} 39. Kg2 {[%emt 0:11:00] Weighted Error Value: White=0.16 (very precise) /Black=0.41} 1-0

[Event "Israeli Championship 2022"]
[Site "Yosiah Arad"]
[Date "2022.12.06"]
[Round "2.12"]
[White "Levin, Guy"]
[Black "Ben-Menachem, Itzhak"]
[Result "1-0"]
[ECO "A36"]
[WhiteElo "2382"]
[BlackElo "2291"]
[Annotator "TA"]
[PlyCount "69"]
[EventDate "2022.12.05"]
[EventType "swiss"]
[EventCountry "ISR"]
[SourceTitle "playchess.com"]
[Source "ChessBase"]
[SourceQuality "1"]
[TimeControl "40/5400+30:1800+30"]

{[%evp 9,69,0,0,0,8,5,10,33,7,3,10,4,18,2,7,8,9,10,9,7,6,0,0,0,0,0,0,0,0,0,0,0,0,0,0,-8,0,0,0,0,0,0,51,31,75,59,117,112,298,277,421,414,391,385,862,848,809,798,7337,29950,2119,2034]} 1. c4 {[%emt 0:00:09]} c5 {[%emt 0:00:36]} 2. g3 {[%emt 0:00:13]} g6 {[%emt 0:00:10]} 3. Bg2 {[%emt 0:00:07]} Bg7 {[%emt 0:00:01]} 4. Nc3 {[%emt 0:00:12]} Nc6 {[%emt 0:00:02]} 5. b3 {[%emt 0:00:08]} e6 {[%emt 0:01:29]} 6. Ba3 {[%emt 0:00:18] A36: Symmetrical English vs ...g6: 4 Bg2 Bg7.} d6 {[%emt 0:09:32]} 7. e3 {[%emt 0:00:12]} Nge7 {[%emt 0:00:19]} 8. Nge2 {[%emt 0:00:27] The position is equal.} O-O {[%emt 0:00:38]} 9. O-O {[%emt 0:07:40]} e5 {[%emt 0:10:37] [#] Prevents d4.} 10. Rb1 $146 {[%emt 0:04:22]} ({Predecessor:} 10. d3 Be6 11. Nd5 Qd7 12. Bb2 Bh3 13. Bxh3 Qxh3 14. Nec3 Rad8 15. Qf3 Nxd5 16. Nxd5 f5 17. Qg2 Qxg2+ 18. Kxg2 Rf7 19. e4 f4 20. f3 fxg3 21. hxg3 {1-0 (45) Caruana,F (2781)-Abdusattorov,N (2651) Chess.com INT 2022}) 10... Be6 {[%emt 0:04:57]} 11. d3 {[%emt 0:05:18]} Qd7 {[%emt 0:15:23]} 12. Nd5 {[%emt 0:08:25]} Bh3 {[%emt 0:03:02]} 13. Bxh3 {[%emt 0:07:03]} Qxh3 {[%emt 0:00:08]} 14. b4 {[%emt 0:00:56]} b6 {[%emt 0:07:14]} 15. Nec3 {[%emt 0:01:31]} (15. Qa4 {is interesting.} Qf5 16. e4 Qf3 17. Nxe7+ Nxe7 18. Qd1) 15... Nxd5 {[%emt 0:04:11]} 16. Nxd5 {[%emt 0:02:12]} Qd7 {[%emt 0:01:29]} 17. bxc5 {[%emt 0:14:18]} dxc5 {[%emt 0:03:17]} 18. e4 {[%emt 0:01:28]} f5 {[%emt 0:06:04]} 19. f3 {[%emt 0:00:02]} fxe4 {[%emt 0:07:53]} 20. dxe4 {[%emt 0:00:54][%cal Od5f6] Strongly threatening Nf6+!} Qh3 {[%emt 0:00:10]} 21. Bb2 {[%emt 0:02:58][%cal Od5b6]} Rf7 {[%emt 0:02:17]} 22. a4 {[%emt 0:03:02]} Raf8 {[%emt 0:01:45]} 23. Qe2 {[%emt 0:06:06]} (23. Bc3 {seems wilder.} Nd8 24. a5 Ne6 25. axb6 axb6 26. Qe2) 23... Qe6 {[%emt 0:04:31]} 24. Bc3 {[%emt 0:00:47]} Kh8 {[%emt 0:01:44]} 25. Kg2 {[%emt 0:02:27]} Re8 {[%emt 0:00:52]} (25... g5 $11) 26. Qe3 {[%emt 0:03:13][%cal Oa4a5]} Bf8 {[%emt 0:01:17] Prevents a5.} 27. f4 {[%emt 0:03:08][%cal Bf3f4,Bf4f5,Bf5g6][%mdl 32]} (27. a5 {keeps more tension.} bxa5 28. f4 Nd4 29. fxe5 Rxf1 30. Rxf1 Qxe5 31. Rf7) 27... Bg7 {[%emt 0:01:47] [#] Prevents a5.} (27... Nd4 $14) 28. f5 $1 $16 {[%emt 0:00:20]} Qd7 {[%emt 0:01:57] [#] This move loses the game for Black.} (28... Qd6 $16) 29. fxg6 $1 $18 {[%emt 0:05:28]} (29. f6 Bf8 $16) 29... hxg6 {[%emt 0:00:36]} (29... Rxf1 {keeps fighting.} 30. Rxf1 Qd6) 30. Rxf7 {[%emt 0:00:59] Active counter play!} Qxf7 {[%emt 0:00:01]} 31. Rf1 {[%emt 0:00:13]} Qd7 {[%emt 0:02:34]} (31... Qg8 32. Qg5 Nd4 33. Qxg6 Re6) 32. Nf6 {[%emt 0:00:24]} Bxf6 {[%emt 0:00:30]} 33. Rxf6 {[%emt 0:00:04][%cal Oe3g5] White wants to mate with Qg5!} Kh7 {[%emt 0:02:35]} 34. Qg5 {[%emt 0:00:14]} Rg8 {[%emt 0:00:19]} 35. Bd2 {[%emt 0:22:42] Weighted Error Value: White=0.02 (flawless) /Black=0.29 (precise)} ({Not} 35. Bxe5 Nxe5 36. Qxe5 Rg7 $16) 1-0

[Event "Israeli Championship 2022"]
[Site "Yosiah Arad"]
[Date "2022.12.06"]
[Round "2.13"]
[White "Poleg, Matan"]
[Black "Aizenberg, Benny"]
[Result "0-1"]
[ECO "A56"]
[WhiteElo "2291"]
[BlackElo "2375"]
[Annotator "TA"]
[PlyCount "48"]
[EventDate "2022.12.05"]
[EventType "swiss"]
[EventCountry "ISR"]
[SourceTitle "playchess.com"]
[Source "ChessBase"]
[SourceQuality "1"]
[TimeControl "40/5400+30:1800+30"]

{[%evp 9,48,0,41,0,0,-14,22,-48,-37,-85,-82,-74,-40,-38,-6,-10,-16,-497,-486,-496,-490,-489,-477,-479,-478,-463,-415,-628,-478,-562,-538,-1047,-1039,-1015,-1037,-1037,-1039,-1034,-1014,-998,-981]} 1. d4 {[%emt 0:00:31]} Nf6 {[%emt 0:00:03]} 2. c4 {[%emt 0:00:22]} c5 {[%emt 0:00:04]} 3. e3 {[%emt 0:00:46]} g6 {[%emt 0:00:04]} 4. dxc5 {[%emt 0:00:53]} Bg7 {[%emt 0:02:03]} 5. a3 {[%emt 0:01:42]} a5 {[%emt 0:02:24] [#]} 6. Ra2 $146 {[%emt 0:04:18] A56: Czech Benoni.} ({Predecessor:} 6. Nc3 Na6 7. Na4 Qc7 8. Nb6 Rb8 9. Rb1 Nxc5 10. Nxc8 Rxc8 11. Nf3 a4 12. Nd4 {0-1 (40) Rocher,O (2132)-Debray,F (2134) France 2009}) 6... O-O {[%emt 0:05:07]} 7. Nc3 {[%emt 0:01:20]} Qc7 {[%emt 0:03:18]} (7... Na6 $5 {[%cal Ra6c5]}) 8. b4 {[%emt 0:02:35]} (8. Be2 $11) 8... axb4 $15 {[%emt 0:03:33]} 9. Nb5 {[%emt 0:11:11]} (9. axb4 $15 Rxa2 10. Nxa2) 9... Qa5 $17 {[%emt 0:06:00] Threatens to win with ...Ne4.} ({Don't do} 9... Qxc5 10. axb4 $16) 10. Bd2 {[%emt 0:03:46]} Ne4 {[%emt 0:02:42][%cal Oe4d2] Strongly threatening ...Nxd2!} 11. Bxb4 {[%emt 0:03:37] [#]} Qxb4+ {[%emt 0:02:40][%mdl 64]} 12. axb4 {[%emt 0:00:09]} Rxa2 {[%emt 0:00:01]} 13. Qb3 {[%emt 0:00:27][%mdl 8192] Against Nc3. Loses the game.} (13. f3 $1 $11 {and White is okay.}) 13... Ra1+ $19 {[%emt 0:01:54][%cal Ba2a1,Ba1f1,Bf1f2,Bf2b2][%mdl 32]} ({Weaker is} 13... Rxf2 14. Ne2 $16) 14. Ke2 {[%emt 0:00:12] [#]} Rxf1 $1 {[%emt 0:00:04][%mdl 576]} 15. f3 {[%emt 0:03:00][%cal Of3e4]} Rf2+ {[%emt 0:00:07]} 16. Ke1 {[%emt 0:01:55]} Rb2 {[%emt 0:00:08] Inhibits Ne2.} 17. Qa3 {[%emt 0:00:14]} Nd2 {[%emt 0:06:09]} 18. Qd3 {[%emt 0:09:30]} (18. Qxb2 $142 Nxf3+ 19. Nxf3 Bxb2 20. Kd2) 18... Nc6 {[%emt 0:00:28][%cal Bb8c6,Bc6b4,Bb4d3,Bd3b2,Bb2c4,Bc4e3][%mdl 32] Hoping for ...Nb3. Black is clearly winning.} 19. Nd4 {[%emt 0:00:06]} Nxb4 {[%emt 0:00:15]} 20. Qc3 {[%emt 0:00:14]} Nb1 {[%emt 0:00:05][%csl LRc3,LRg2]} 21. Qxb2 {[%emt 0:00:57]} Nd3+ {[%emt 0:00:01]} 22. Kd1 {[%emt 0:00:08]} Nxb2+ {[%emt 0:00:05]} 23. Kc2 {[%emt 0:00:05]} Nxc4 {[%emt 0:00:05]} 24. Kxb1 {[%emt 0:00:03]} Nxe3 {[%emt 0:00:04] Weighted Error Value: White=0.90/Black=0.30} 0-1